[Event "BL 2016-17"]
[Site "Germany"]
[Date "2017.04.08"]
[Round "11"]
[White "Jaracz, Pawel"]
[Black "Dinstuhl, Volkmar"]
[Result "1/2-1/2"]
[ECO "E10"]
[WhiteElo "2469"]
[BlackElo "2397"]
[Annotator "TA"]
[PlyCount "133"]
[EventDate "2017.??.??"]
[EventType "team-tourn"]
[EventCountry "GER"]
[SourceTitle "playchess.com"]
[Source "ChessBase"]
[SourceQuality "1"]
[WhiteTeam "SG Trier"]
[BlackTeam "Mülheim Nord"]
[TimeControl "40/6000+30:3000+30"]

1. d4 {[%emt 0:00:00]} Nf6 {[%emt 0:00:11]} 2. c4 {[%emt 0:00:01]} e6 {[%emt 0:00:11]} 3. Nf3 {[%emt 0:00:14]} Nc6 {[%emt 0:01:14]} 4. a3 {[%emt 0:05:23]} d6 {[%emt 0:00:53]} 5. g3 {[%emt 0:07:22]} g6 {[%emt 0:00:48]} 6. Bg2 {[%emt 0:00:05]} Bg7 {[%emt 0:00:09]} 7. O-O {[%emt 0:01:12]} O-O {[%emt 0:00:02]} 8. Nc3 {[%emt 0:03:58]} a6 {[%emt 0:09:58]} 9. Bf4 {[%emt 0:14:30]} h6 {[%emt 0:13:37]} 10. Qd3 {[%emt 0:13:06]} Bd7 {[%emt 0:23:53]} 11. e4 {[%emt 0:06:24]} Nxd4 {[%emt 0:22:41]} 12. Nxd4 {[%emt 0:07:17]} e5 {[%emt 0:00:07]} 13. Be3 {[%emt 0:00:44]} exd4 {[%emt 0:00:06]} 14. Bxd4 {[%emt 0:00:03]} Bc6 {[%emt 0:03:05]} 15. b4 {[%emt 0:03:15]} Re8 {[%emt 0:05:03]} 16. Rfe1 {[%emt 0:05:26]} Qe7 {[%emt 0:06:43]} 17. Rac1 {[%emt 0:03:31]} Bd7 {[%emt 0:03:54]} 18. c5 {[%emt 0:06:44]} Bc6 {[%emt 0:04:34]} 19. cxd6 {[%emt 0:01:05]} cxd6 {[%emt 0:00:31]} 20. a4 {[%emt 0:02:26]} Rac8 {[%emt 0:00:56]} 21. Bh3 {[%emt 0:01:58]} Rcd8 {[%emt 0:04:08]} 22. Qd2 {[%emt 0:07:15]} b5 {[%emt 0:02:57]} 23. axb5 {[%emt 0:01:23]} axb5 {[%emt 0:00:03]} 24. Qb2 {[%emt 0:07:15]} Qf8 {[%emt 0:02:51]} 25. Nxb5 {[%emt 0:01:22]} Bxb5 {[%emt 0:02:17]} 26. Bxf6 {[%emt 0:00:04]} d5 {[%emt 0:00:46]} 27. Bxg7 {[%emt 0:03:50]} Qxg7 {[%emt 0:00:01]} 28. Qxg7+ {[%emt 0:00:27]} Kxg7 {[%emt 0:00:01]} 29. exd5 {[%emt 0:00:33]} Rxe1+ {[%emt 0:00:06]} 30. Rxe1 {[%emt 0:00:02]} Rxd5 {[%emt 0:00:02]} 31. Bf1 {[%emt 0:02:46]} Kf6 {[%emt 0:00:52]} 32. Bxb5 {[%emt 0:00:57]} Rxb5 {[%emt 0:00:02]} 33. Re4 {[%emt 0:00:25]} Kf5 {[%emt 0:01:10]} 34. Rf4+ {[%emt 0:00:34]} Ke6 {[%emt 0:00:11]} 35. Rh4 {[%emt 0:02:18]} Kd5 {[%emt 0:01:02]} 36. Kg2 {[%emt 0:01:44]} Rb6 {[%emt 0:00:33]} 37. Kf3 {[%emt 0:01:04]} g5 {[%emt 0:00:30]} 38. Rh5 {[%emt 0:00:54]} f5 {[%emt 0:00:46]} 39. h4 {[%emt 0:00:34]} Ke5 {[%emt 0:01:16]} 40. hxg5 {[%emt 0:00:21]} hxg5 {[%emt 0:50:01]} 41. Rxg5 {[%emt 0:02:53]} Rxb4 {[%emt 0:00:00]} 42. Rh5 {[%emt 0:03:40]} Ra4 {[%emt 0:00:00]} 43. Kg2 {[%emt 0:01:09]} Kf6 {[%emt 0:00:00]} 44. f4 {[%emt 0:01:06]} Kg6 {[%emt 0:00:00]} 45. Rh1 {[%emt 0:04:35]} Ra3 {[%emt 0:00:00]} 46. Rb1 {[%emt 0:00:23]} Ra6 {[%emt 0:00:00]} 47. Kh3 {[%emt 0:01:48]} Rc6 {[%emt 0:00:00]} 48. Kh4 {[%emt 0:01:54]} Ra6 {[%emt 0:00:00]} 49. Rb8 {[%emt 0:00:42]} Rc6 {[%emt 0:00:00]} 50. Rg8+ {[%emt 0:00:50]} Kf7 {[%emt 0:00:00]} 51. Rg5 {[%emt 0:01:12]} Kf6 {[%emt 0:00:00]} 52. Rg8 {[%emt 0:20:42]} Kf7 {[%emt 0:00:00]} 53. Ra8 {[%emt 0:02:08]} Kg6 {[%emt 0:00:00]} 54. Ra3 {[%emt 0:02:28]} Rb6 {[%emt 0:00:00]} 55. Kh3 {[%emt 0:00:23]} Rc6 {[%emt 0:00:00]} 56. Rb3 {[%emt 0:00:17]} Ra6 {[%emt 0:00:00]} 57. Kg2 {[%emt 0:01:07]} Rc6 {[%emt 0:00:00]} 58. Rb8 {[%emt 0:00:47]} Kf6 {[%emt 0:00:00]} 59. Rf8+ {[%emt 0:01:11]} Kg6 {[%emt 0:00:00]} 60. Kh3 {[%emt 0:00:30]} Ra6 {[%emt 0:00:00]} 61. Rc8 {[%emt 0:03:51]} Rb6 {[%emt 0:00:00]} 62. Kh4 {[%emt 0:00:51]} Ra6 {[%emt 0:00:00]} 63. Rg8+ {[%emt 0:02:21]} Kf7 {[%emt 0:00:00]} 64. Rg5 {[%emt 0:00:12]} Kf6 {[%emt 0:00:00]} 65. Kh5 {[%emt 0:00:16]} Ra3 {[%emt 0:00:00]} 66. Rg8 {[%emt 0:01:36]} Kf7 {[%emt 0:00:00] Check Result:0.00} 67. Rg5 {[%emt 0:00:59]} 1/2-1/2

[Event "BL 2016-17"]
[Site "Germany"]
[Date "2017.04.08"]
[Round "11"]
[White "Walter, Stefan"]
[Black "Zysk, Robert"]
[Result "1/2-1/2"]
[ECO "A04"]
[WhiteElo "2416"]
[BlackElo "2398"]
[Annotator "NA"]
[PlyCount "70"]
[EventDate "2017.??.??"]
[EventType "team-tourn"]
[EventCountry "GER"]
[SourceTitle "playchess.com"]
[Source "ChessBase"]
[SourceQuality "1"]
[WhiteTeam "Griesheim"]
[BlackTeam "Zugzwang München"]
[TimeControl "40/6000+30:3000+30"]

1. Nf3 {[%emt 0:00:00]} c5 {[%emt 0:07:27]} 2. g3 {[%emt 0:03:03]} Nc6 {[%emt 0:01:58]} 3. Bg2 {[%emt 0:00:25]} g6 {[%emt 0:05:21]} 4. O-O {[%emt 0:02:21]} Bg7 {[%emt 0:00:13]} 5. c3 {[%emt 0:04:35]} e5 {[%emt 0:19:34]} 6. e4 {[%emt 0:05:04]} Nge7 {[%emt 0:01:28]} 7. d3 {[%emt 0:01:14]} O-O {[%emt 0:02:57] LiveBook: 249 Games} 8. Na3 {[%emt 0:22:03] A04: Unusual lines after 1 Nf3 and King's Indian Attack} (8. a3 d6 9. b4 b6 10. b5 Na5 11. c4 h6 12. a4 Be6 13. Bd2 f5 14. Bxa5 bxa5 15. Nbd2 f4 16. Nb3 g5 17. Re1 Ng6 {0-1 (35) Kozul,Z (2613)-Dominguez Perez,L (2739) Doha 2016}) 8... b6 {[%emt 0:08:29]} 9. Nc4 {[%emt 0:05:21]} d6 $146 {[%emt 0:00:30]} (9... d5 10. exd5 Nxd5 11. Re1 Bg4 12. h3 b5 13. Ncxe5 Nxe5 14. hxg4 Nxg4 15. Nh4 Ngf6 16. c4 g5 17. Nf5 Qd7 18. Nxg7 Kxg7 19. cxd5 h6 20. Be3 Nxd5 21. Bxc5 Rfe8 22. Bxd5 f6 23. Qb3 {1-0 (23) Royer,O-Espinoza,F Brazil CXEB 1997}) 10. Bd2 {[%emt 0:06:43]} h6 {[%emt 0:01:38]} 11. a4 {[%emt 0:06:25]} Be6 {[%emt 0:01:20]} 12. Qe2 {[%emt 0:02:09]} Qd7 {[%emt 0:06:22]} 13. b4 {[%emt 0:06:47]} cxb4 {[%emt 0:03:46]} 14. cxb4 {[%emt 0:00:08]} Bg4 {[%emt 0:02:15]} 15. Qe1 {[%emt 0:01:52]} Rae8 {[%emt 0:14:36]} (15... Bxf3 $11 16. Bxf3 Nd4) 16. b5 {[%emt 0:07:23]} Nd8 {[%emt 0:00:32]} 17. a5 {[%emt 0:00:07]} Nc8 {[%emt 0:01:36]} 18. Qb1 $14 {[%emt 0:05:03]} Nb7 {[%emt 0:06:14]} 19. axb6 {[%emt 0:01:40]} axb6 {[%emt 0:00:05]} 20. Ra8 {[%emt 0:05:32]} Nc5 {[%emt 0:05:32]} 21. Rxc8 {[%emt 0:03:56]} Qxc8 {[%emt 0:00:15]} 22. Nxd6 {[%emt 0:00:14]} Qd7 {[%emt 0:00:08]} 23. Nxe8 {[%emt 0:00:07]} Rxe8 {[%emt 0:00:05]} 24. Be3 {[%emt 0:01:01]} Rd8 {[%emt 0:05:50]} 25. Bxc5 {[%emt 0:10:12]} bxc5 {[%emt 0:00:06]} 26. b6 {[%emt 0:00:13]} Rb8 {[%emt 0:04:08]} 27. Qb3 {[%emt 0:04:44]} Be6 {[%emt 0:01:31]} 28. Qc3 {[%emt 0:00:04]} Qd6 {[%emt 0:04:31]} 29. Rb1 {[%emt 0:04:32]} Rxb6 {[%emt 0:00:36]} 30. Rxb6 {[%emt 0:00:02]} Qxb6 {[%emt 0:00:11]} 31. Nd2 {[%emt 0:00:04]} Qb4 {[%emt 0:00:46]} 32. Qc2 {[%emt 0:00:01]} h5 {[%emt 0:01:02]} 33. Bf1 {[%emt 0:00:17]} Bh6 {[%emt 0:02:03]} 34. Nc4 {[%emt 0:00:02]} f6 {[%emt 0:01:30]} 35. Qa2 {[%emt 0:00:01]} Bxc4 {[%emt 0:00:56]} 1/2-1/2

[Event "BL 2016-17"]
[Site "Germany"]
[Date "2017.04.08"]
[Round "11"]
[White "Beerdsen, Thomas"]
[Black "Kolbus, Dietmar"]
[Result "1-0"]
[ECO "C42"]
[WhiteElo "2415"]
[BlackElo "2308"]
[Annotator "ChessBase"]
[PlyCount "145"]
[EventDate "2017.??.??"]
[EventType "team-tourn"]
[EventCountry "GER"]
[SourceTitle "playchess.com"]
[Source "ChessBase"]
[SourceQuality "1"]
[WhiteTeam "Mülheim Nord"]
[BlackTeam "SG Trier"]
[TimeControl "40/6000+30:3000+30"]

1. e4 {[%emt 0:00:00]} e5 {[%emt 0:00:05]} 2. Nf3 {[%emt 0:00:00]} Nf6 {[%emt 0:00:05]} 3. Nc3 {[%emt 0:00:00]} Bb4 {[%emt 0:00:04]} 4. Bd3 {[%emt 0:00:51]} Bxc3 {[%emt 0:02:55]} 5. dxc3 {[%emt 0:01:42]} d6 {[%emt 0:01:06]} 6. O-O {[%emt 0:10:37]} O-O {[%emt 0:01:41]} 7. Qe2 {[%emt 0:05:01]} Nbd7 {[%emt 0:01:58]} 8. Be3 {[%emt 0:01:03]} Re8 {[%emt 0:01:13]} 9. Nd2 {[%emt 0:02:07]} Nf8 {[%emt 0:01:45]} 10. f4 {[%emt 0:03:12]} exf4 {[%emt 0:00:20]} 11. Bxf4 {[%emt 0:04:03]} Bg4 {[%emt 0:05:11]} 12. Qf2 {[%emt 0:01:16]} N6d7 {[%emt 0:10:34]} 13. Nc4 {[%emt 0:12:01]} Be6 {[%emt 0:05:41]} 14. e5 {[%emt 0:02:41]} dxe5 {[%emt 0:07:02]} 15. Nxe5 {[%emt 0:01:55]} Nxe5 {[%emt 0:00:34]} 16. Bxe5 {[%emt 0:00:05]} Ng6 {[%emt 0:00:15]} 17. Bd4 {[%emt 0:02:18]} Qg5 {[%emt 0:10:01]} 18. Rae1 {[%emt 0:05:07]} Bd5 {[%emt 0:12:31]} 19. Re3 {[%emt 0:05:02]} Rxe3 {[%emt 0:01:02]} 20. Bxe3 {[%emt 0:00:05]} Qe7 {[%emt 0:02:46]} 21. c4 {[%emt 0:06:10]} Be6 {[%emt 0:03:12]} 22. Bd4 {[%emt 0:06:44]} a6 {[%emt 0:03:40]} 23. Bc3 {[%emt 0:01:08]} Rd8 {[%emt 0:05:29]} 24. b3 {[%emt 0:01:01]} Rd7 {[%emt 0:04:27]} 25. Re1 {[%emt 0:01:46]} Qd8 {[%emt 0:04:36]} 26. Re3 {[%emt 0:02:13]} c6 {[%emt 0:03:46]} 27. Rg3 {[%emt 0:01:04]} Qh4 {[%emt 0:05:53]} 28. Bxg7 {[%emt 0:00:38]} Qh5 {[%emt 0:07:12]} 29. Bc3 {[%emt 0:00:50]} Qd1+ {[%emt 0:00:30]} 30. Bf1 {[%emt 0:05:34]} f5 {[%emt 0:03:42]} 31. Re3 {[%emt 0:00:29]} Kf7 {[%emt 0:00:54]} 32. Re1 {[%emt 0:00:21]} Qg4 {[%emt 0:01:17]} 33. Be2 {[%emt 0:00:05]} Qg5 {[%emt 0:00:24]} 34. Rf1 {[%emt 0:01:18]} Ke8 {[%emt 0:01:29]} 35. Bd3 {[%emt 0:01:21]} f4 {[%emt 0:02:01]} 36. Re1 {[%emt 0:01:13]} Kf7 {[%emt 0:00:09]} 37. Qe2 {[%emt 0:02:53]} Re7 {[%emt 0:00:29]} 38. Bb4 {[%emt 0:04:44]} Re8 {[%emt 0:00:06]} 39. Rf1 {[%emt 0:01:27]} Bf5 {[%emt 0:02:05]} 40. Qd2 {[%emt 0:01:44]} Bxd3 {[%emt 0:51:04]} 41. Qxd3 {[%emt 0:53:36]} Rd8 {[%emt 0:00:59]} 42. Qf3 {[%emt 0:09:41]} Kg7 {[%emt 0:00:00]} 43. Bc3+ {[%emt 0:00:00]} Kf7 {[%emt 0:00:00]} 44. Kh1 {[%emt 0:00:00]} Qf5 {[%emt 0:00:00]} 45. Qf2 {[%emt 0:00:00]} Re8 {[%emt 0:00:00]} 46. Qd4 {[%emt 0:00:00]} Re7 {[%emt 0:00:00]} 47. Rf2 {[%emt 0:00:00]} Ke8 {[%emt 0:00:00]} 48. h3 {[%emt 0:00:00]} Qe4 {[%emt 0:00:00]} 49. Qxe4 {[%emt 0:00:00]} Rxe4 {[%emt 0:00:00]} 50. Kg1 {[%emt 0:00:00]} Kf7 {[%emt 0:00:00]} 51. Rd2 {[%emt 0:00:00]} Re3 {[%emt 0:00:00]} 52. Bd4 {[%emt 0:00:00]} Re1+ {[%emt 0:00:00]} 53. Kf2 {[%emt 0:00:00]} Rc1 {[%emt 0:00:00]} 54. Kf3 {[%emt 0:00:00]} h5 {[%emt 0:00:00]} 55. Re2 {[%emt 0:00:00]} Rd1 {[%emt 0:00:00]} 56. Bc3 {[%emt 0:00:00]} Rf1+ {[%emt 0:00:00]} 57. Ke4 {[%emt 0:00:00]} Ke6 {[%emt 0:00:00]} 58. Bd2 {[%emt 0:00:00]} Kf6 {[%emt 0:00:25]} 59. a4 {[%emt 0:00:00]} Ke6 {[%emt 0:00:21]} 60. a5 {[%emt 0:00:00]} c5 {[%emt 0:02:50]} 61. Be1 {[%emt 0:00:00]} Kf6 {[%emt 0:02:07]} 62. Bf2 {[%emt 0:00:00]} Ra1 {[%emt 0:00:29]} 63. b4 {[%emt 0:00:00]} Ra3 {[%emt 0:01:01]} 64. Bxc5 {[%emt 0:00:00]} Ke6 {[%emt 0:00:23]} 65. Rd2 {[%emt 0:01:09]} Rg3 {[%emt 0:00:26]} 66. Rd6+ {[%emt 0:01:39]} Kf7 {[%emt 0:00:06]} 67. Rd7+ {[%emt 0:00:09]} Kf6 {[%emt 0:00:27]} 68. Rxb7 {[%emt 0:00:39]} Rxg2 {[%emt 0:00:06]} 69. b5 {[%emt 0:00:14]} Rxc2 {[%emt 0:00:34]} 70. bxa6 {[%emt 0:00:11]} Rxc4+ {[%emt 0:00:14]} 71. Bd4+ {[%emt 0:00:27]} Kg5 {[%emt 0:00:14]} 72. a7 {[%emt 0:00:05]} Rc8 {[%emt 0:00:10]} 73. Rb8 {[%emt 0:00:04]} 1-0

[Event "BL 2016-17"]
[Site "Germany"]
[Date "2017.04.08"]
[Round "11"]
[White "Koop, Thorben"]
[Black "Hoffmann, Paul"]
[Result "1/2-1/2"]
[ECO "A05"]
[WhiteElo "2398"]
[BlackElo "2386"]
[Annotator "ChessBase"]
[PlyCount "99"]
[EventDate "2017.??.??"]
[EventType "team-tourn"]
[EventCountry "GER"]
[SourceTitle "playchess.com"]
[Source "ChessBase"]
[SourceQuality "1"]
[WhiteTeam "Werder Bremen"]
[BlackTeam "TU Dresden"]
[TimeControl "40/6000+30:3000+30"]

1. Nf3 {[%emt 0:00:00]} Nf6 {[%emt 0:00:06]} 2. g3 {[%emt 0:00:10]} d5 {[%emt 0:03:21]} 3. Bg2 {[%emt 0:01:09]} e6 {[%emt 0:01:55]} 4. O-O {[%emt 0:01:02]} Be7 {[%emt 0:00:11]} 5. d4 {[%emt 0:02:43]} O-O {[%emt 0:00:26]} 6. c4 {[%emt 0:00:29]} c6 {[%emt 0:00:49]} 7. Nc3 {[%emt 0:03:57]} b6 {[%emt 0:02:30]} 8. b3 {[%emt 0:02:18]} Ba6 {[%emt 0:03:42]} 9. Bb2 {[%emt 0:02:58]} b5 {[%emt 0:06:20]} 10. Ne5 {[%emt 0:10:47]} b4 {[%emt 0:10:30]} 11. Na4 {[%emt 0:05:14]} Nfd7 {[%emt 0:03:35]} 12. cxd5 {[%emt 0:13:06]} cxd5 {[%emt 0:01:32]} 13. Qd2 {[%emt 0:03:51]} Nxe5 {[%emt 0:04:22]} 14. dxe5 {[%emt 0:00:12]} Bb5 {[%emt 0:00:28]} 15. Rac1 {[%emt 0:07:06]} Na6 {[%emt 0:00:36]} 16. Rfd1 {[%emt 0:07:19]} Qa5 {[%emt 0:10:01]} 17. e4 {[%emt 0:05:34]} d4 {[%emt 0:02:19]} 18. Bxd4 {[%emt 0:03:25]} Bxa4 {[%emt 0:05:23]} 19. bxa4 {[%emt 0:00:06]} Qxa4 {[%emt 0:00:18]} 20. Rc4 {[%emt 0:04:39]} Rfd8 {[%emt 0:07:21]} 21. Rdc1 {[%emt 0:02:34]} h6 {[%emt 0:29:07]} 22. Qb2 {[%emt 0:03:33]} Qa3 {[%emt 0:03:23]} 23. Qb1 {[%emt 0:02:12]} Bg5 {[%emt 0:02:40]} 24. Rd1 {[%emt 0:05:13]} Rd7 {[%emt 0:02:05]} 25. h4 {[%emt 0:01:47]} Be7 {[%emt 0:00:53]} 26. Rdc1 {[%emt 0:02:43]} Rad8 {[%emt 0:01:16]} 27. Be3 {[%emt 0:02:04]} Qa5 {[%emt 0:02:24]} 28. Qb2 {[%emt 0:01:58]} Nc7 {[%emt 0:02:17]} 29. Bf1 {[%emt 0:04:06]} Nb5 {[%emt 0:00:53]} 30. Bc5 {[%emt 0:02:56]} Bxc5 {[%emt 0:01:39]} 31. Rxc5 {[%emt 0:00:14]} a6 {[%emt 0:00:12]} 32. Bxb5 {[%emt 0:06:11]} axb5 {[%emt 0:00:10]} 33. Rc8 {[%emt 0:01:19]} Kh7 {[%emt 0:01:25]} 34. Rxd8 {[%emt 0:00:29]} Rxd8 {[%emt 0:00:09]} 35. Rb1 {[%emt 0:01:13]} Qa3 {[%emt 0:02:05]} 36. Qxb4 {[%emt 0:01:30]} Qxa2 {[%emt 0:01:05]} 37. Qxb5 {[%emt 0:00:48]} Rd2 {[%emt 0:00:11]} 38. Rf1 {[%emt 0:00:40]} Qa7 {[%emt 0:00:18]} 39. Qb4 {[%emt 0:01:03]} Ra2 {[%emt 0:00:33]} 40. Qc4 {[%emt 0:00:41]} Rb2 {[%emt 0:50:50]} 41. Qc3 {[%emt 0:01:41]} Ra2 {[%emt 0:00:00]} 42. Qf3 {[%emt 0:02:13]} Ra5 {[%emt 0:00:00]} 43. Qf4 {[%emt 0:03:33]} Qc7 {[%emt 0:00:00]} 44. Re1 {[%emt 0:04:17]} Qc3 {[%emt 0:00:00]} 45. Kf1 {[%emt 0:02:58]} Rxe5 {[%emt 0:00:00]} 46. Qxf7 {[%emt 0:03:27]} Qd3+ {[%emt 0:00:00]} 47. Kg1 {[%emt 0:10:23]} Rxe4 {[%emt 0:00:00]} 48. Rc1 {[%emt 0:02:53]} Rc4 {[%emt 0:00:00]} 49. Ra1 {[%emt 0:09:48]} Qf5 {[%emt 0:00:00]} 50. Qxf5+ 1/2-1/2

[Event "BL 2016-17"]
[Site "Jenbach"]
[Date "2017.04.22"]
[Round "11"]
[White "Lehner, Oliver"]
[Black "Tober, Gerhard"]
[Result "1-0"]
[ECO "E06"]
[WhiteElo "2386"]
[BlackElo "2260"]
[Annotator "NA"]
[PlyCount "89"]
[EventDate "2017.??.??"]
[EventCountry "AUT"]
[SourceTitle "playchess.com"]
[Source "ChessBase"]
[SourceQuality "1"]
[WhiteTeam "Jenbach"]
[BlackTeam "St. Valentin"]
[TimeControl "40/5400+30:1800+30"]

1. d4 {[%emt 0:00:00]} d5 {[%emt 0:00:14]} 2. c4 {[%emt 0:00:00]} e6 {[%emt 0:00:29]} 3. Nf3 {[%emt 0:00:00]} Nf6 {[%emt 0:00:35]} 4. g3 {[%emt 0:00:02]} Be7 {[%emt 0:00:28]} 5. Bg2 {[%emt 0:00:11]} O-O {[%emt 0:00:22]} 6. O-O {[%emt 0:00:16]} dxc4 {[%emt 0:00:13]} 7. Qc2 {[%emt 0:00:13]} a6 {[%emt 0:01:38]} 8. a4 {[%emt 0:00:57]} Nbd7 {[%emt 0:04:43]} 9. Nbd2 {[%emt 0:03:43]} c3 {[%emt 0:15:30] LiveBook: 3 Games E05: Open Catalan: 5 Nf3 Be7} 10. bxc3 {[%emt 0:02:16]} Rb8 $146 {[%emt 0:09:36]} (10... c5 11. Nc4 a5 12. Rd1 cxd4 13. Nxd4 Bc5 14. Rb1 Qc7 15. Qb3 Ra6 16. Nb5 Qb8 17. Ba3 {1-0 (49) Gonzalez Zamora,J (2502)-Gil Alba,H (2361) Villahermosa 2016}) 11. Nc4 {[%emt 0:13:25]} b5 {[%emt 0:08:41]} (11... b6 $16) 12. Na5 {[%emt 0:02:16]} Rb6 {[%emt 0:07:20]} 13. Ne5 {[%emt 0:06:20]} Nxe5 {[%emt 0:12:55]} 14. dxe5 {[%emt 0:00:11]} Nd7 {[%emt 0:00:59]} 15. Nc6 {[%emt 0:04:11]} Rxc6 {[%emt 0:10:29]} 16. Bxc6 {[%emt 0:00:16]} Nxe5 {[%emt 0:00:14]} 17. Bg2 {[%emt 0:04:20]} ({Better is} 17. axb5 $18 {Black must now prevent Rd1.} Bd6 18. Rd1) 17... Bd7 {[%emt 0:04:30]} 18. axb5 {[%emt 0:05:22]} Bxb5 {[%emt 0:00:24]} 19. Rd1 {[%emt 0:01:08]} Bd6 {[%emt 0:01:21]} 20. Ba3 {[%emt 0:06:14]} Qe7 {[%emt 0:00:53]} 21. Bxd6 {[%emt 0:00:59]} cxd6 {[%emt 0:00:05]} 22. Qd2 {[%emt 0:00:09]} d5 {[%emt 0:07:08]} 23. e4 {[%emt 0:05:09]} dxe4 {[%emt 0:01:15]} 24. Bxe4 {[%emt 0:00:07]} Qf6 {[%emt 0:00:34]} 25. f4 {[%emt 0:07:20]} Nc4 {[%emt 0:00:57]} 26. Qd4 {[%emt 0:00:56]} e5 {[%emt 0:00:27] [#]} 27. fxe5 $1 {[%emt 0:00:16]} ({Don't play} 27. Qc5 $6 exf4 28. gxf4 (28. Bxh7+ $2 Kxh7 29. Qd4 fxg3 30. Qxf6 gxh2+ 31. Kxh2 gxf6 $19) 28... Qxf4 $11) 27... Nxe5 {[%emt 0:00:31]} 28. Qf2 {[%emt 0:00:45]} Qh6 {[%emt 0:03:07]} 29. Rd5 {[%emt 0:04:24]} Ng4 {[%emt 0:02:22]} 30. Qd2 {[%emt 0:02:52]} Qb6+ {[%emt 0:01:04]} 31. Qd4 {[%emt 0:00:13]} Qh6 {[%emt 0:00:38] [#]} 32. h4 $1 {[%emt 0:02:05]} ({Not} 32. Bxh7+ Kxh7 33. Qxg4 Qe3+ 34. Kg2 Bc6 $15) 32... Qe3+ {[%emt 0:01:43]} 33. Qxe3 {[%emt 0:00:47]} Nxe3 {[%emt 0:00:01]} 34. Rc5 {[%emt 0:03:54]} f5 {[%emt 0:01:30]} 35. Bc6 {[%emt 0:02:40]} Bd3 {[%emt 0:01:27]} 36. Re1 {[%emt 0:00:51]} Ng4 {[%emt 0:01:34]} 37. Re8 {[%emt 0:02:44]} Rxe8 {[%emt 0:00:20]} 38. Bxe8 {[%emt 0:00:06]} Kf8 {[%emt 0:00:57]} 39. Bd7 {[%emt 0:01:24]} g6 {[%emt 0:00:55]} 40. Be6 {[%emt 0:00:00]} Ne3 {[%emt 0:01:22]} 41. Rc7 $18 {[%emt 0:01:14]} h5 {[%emt 0:03:43]} 42. Kf2 {[%emt 0:02:43]} Ng4+ {[%emt 0:05:24]} 43. Kf3 {[%emt 0:00:14]} Ke8 {[%emt 0:00:51]} 44. Kf4 {[%emt 0:00:09]} Bb5 {[%emt 0:00:42]} 45. c4 1-0

[Event "BL 2016-17"]
[Site "Jenbach"]
[Date "2017.04.22"]
[Round "11"]
[White "Dobosz, Henryk"]
[Black "Hebesberger, Thomas"]
[Result "1-0"]
[ECO "B48"]
[WhiteElo "2385"]
[BlackElo "2299"]
[Annotator "NA"]
[PlyCount "119"]
[EventDate "2017.??.??"]
[EventCountry "AUT"]
[SourceTitle "playchess.com"]
[Source "ChessBase"]
[SourceQuality "1"]
[WhiteTeam "Bregenz"]
[BlackTeam "St. Veit"]
[TimeControl "40/5400+30:1800+30"]

1. e4 {[%emt 0:00:00]} c5 {[%emt 0:00:08]} 2. Nf3 {[%emt 0:00:00]} e6 {[%emt 0:00:56]} 3. d4 {[%emt 0:01:13]} cxd4 {[%emt 0:00:09]} 4. Nxd4 {[%emt 0:00:09]} Nc6 {[%emt 0:00:47]} 5. Nc3 {[%emt 0:02:40]} Qc7 {[%emt 0:00:12]} 6. Be3 {[%emt 0:01:41]} Nf6 {[%emt 0:00:13]} 7. a3 {[%emt 0:09:08]} a6 {[%emt 0:01:55]} 8. f4 {[%emt 0:09:11]} d6 {[%emt 0:03:06] B48: Sicilian: Taimanov: 5 Nc3 Qc7 6 Be3 a6 without Be2} 9. Bd3 {[%emt 0:06:35]} (9. Qf3 Na5 10. O-O-O b5 11. g4 Nd7 12. g5 Nc4 13. Bxc4 Qxc4 14. f5 Ne5 15. Qh3 g6 16. Rhf1 Be7 17. Bf4 {1-0 (57) Vavulin,M (2582)-Grachev,B (2628) Moscow 2016}) 9... Be7 {[%emt 0:06:30] LiveBook: 7 Games} 10. O-O {[%emt 0:01:24]} Nxd4 {[%emt 0:06:02]} 11. Bxd4 {[%emt 0:00:11]} e5 {[%emt 0:00:02]} 12. Be3 {[%emt 0:03:23]} exf4 {[%emt 0:00:30]} 13. Rxf4 {[%emt 0:11:34]} Be6 {[%emt 0:02:33]} 14. Qf3 {[%emt 0:08:01]} O-O $146 {[%emt 0:03:04]} (14... Nd7 15. Rf1 Bg5 {½-½ (56) Novita,A (2356)-Jeitz,C (2235) Khanty-Mansiysk 2010}) 15. Nd5 {[%emt 0:02:35]} Bxd5 {[%emt 0:08:40]} 16. exd5 {[%emt 0:00:12]} Rae8 {[%emt 0:13:51]} 17. Rf1 {[%emt 0:11:07]} Nd7 $2 {[%emt 0:23:02]} (17... g6 $16) 18. Rxf7 {[%emt 0:02:06]} Bf6 {[%emt 0:00:42]} 19. Rxf8+ {[%emt 0:04:04]} Nxf8 {[%emt 0:00:26]} 20. c3 {[%emt 0:02:46]} Qe7 {[%emt 0:00:57]} 21. Bf4 {[%emt 0:02:08]} Nd7 {[%emt 0:01:50]} 22. Qh3 {[%emt 0:03:07]} g6 {[%emt 0:01:36]} 23. Qe6+ {[%emt 0:00:18]} Qxe6 {[%emt 0:05:23]} 24. dxe6 {[%emt 0:00:08]} Ne5 {[%emt 0:00:19]} 25. Bxe5 {[%emt 0:06:55]} Bxe5 {[%emt 0:00:01]} 26. Rf7 {[%emt 0:00:09]} Rxe6 {[%emt 0:08:04]} 27. Rxb7 {[%emt 0:00:07]} d5 {[%emt 0:01:11]} 28. Rd7 {[%emt 0:03:28]} Bd6 {[%emt 0:00:29]} 29. Kf1 {[%emt 0:02:18]} a5 {[%emt 0:00:33]} (29... Bxh2 $16 30. Rxd5 Bg3) 30. c4 {[%emt 0:01:16]} Rf6+ {[%emt 0:02:00]} 31. Ke2 {[%emt 0:00:09]} dxc4 {[%emt 0:00:19]} 32. Bxc4+ {[%emt 0:00:05]} Kh8 {[%emt 0:00:13]} 33. Rd8+ {[%emt 0:04:14]} Kg7 {[%emt 0:00:58]} 34. Ra8 {[%emt 0:00:16]} Rf5 {[%emt 0:06:32]} 35. h3 {[%emt 0:01:45]} Bg3 {[%emt 0:00:47]} 36. Kd3 {[%emt 0:00:44]} h5 {[%emt 0:02:06]} 37. Ra7+ {[%emt 0:01:34]} Kf6 {[%emt 0:01:25]} 38. Ra6+ {[%emt 0:00:34]} Kg5 {[%emt 0:01:18]} 39. Be6 {[%emt 0:00:54]} Rb5 {[%emt 0:00:10]} 40. b3 {[%emt 0:00:00]} Be5 {[%emt 0:00:58]} (40... Bf2 $16) 41. Kc4 {[%emt 0:01:03]} Rb7 {[%emt 0:03:07]} 42. Rxa5 {[%emt 0:00:13]} Kf6 {[%emt 0:00:41]} 43. Ra6 {[%emt 0:00:52]} Rc7+ {[%emt 0:00:26]} 44. Kd5 {[%emt 0:00:35]} Bg3 {[%emt 0:00:08]} 45. Bg4+ {[%emt 0:02:18]} Kg5 {[%emt 0:00:56]} 46. Bf3 {[%emt 0:00:14]} Rc3 {[%emt 0:01:10]} 47. b4 {[%emt 0:00:29]} h4 {[%emt 0:00:40]} 48. Be4 {[%emt 0:01:12]} Kf4 {[%emt 0:01:45]} 49. Rf6+ {[%emt 0:01:34]} Ke3 {[%emt 0:02:06]} 50. Rf3+ {[%emt 0:07:07]} ({Don't take} 50. Bxg6 Rc7 51. a4 Ke2 $18) 50... Kd2 {[%emt 0:00:19]} 51. Rxc3 {[%emt 0:00:28]} Kxc3 {[%emt 0:00:01]} 52. Bxg6 {[%emt 0:00:22]} Kb3 {[%emt 0:00:28]} 53. b5 {[%emt 0:00:06]} Ka4 {[%emt 0:00:38]} 54. Kc6 {[%emt 0:00:15]} Ka5 {[%emt 0:00:16]} 55. b6 {[%emt 0:00:20]} Bf4 {[%emt 0:01:44]} 56. Bd3 {[%emt 0:00:38]} Be5 {[%emt 0:01:51]} 57. b7 {[%emt 0:00:39]} Bg3 {[%emt 0:00:28]} 58. Kd7 {[%emt 0:00:31]} Kb6 {[%emt 0:00:11]} 59. Kc8 {[%emt 0:00:02]} Ka7 {[%emt 0:00:09]} 60. Be4 {[%emt 0:00:05]} 1-0